[Event "Early-Titled-Tuesday-Blitz-September-12-2023"]
[Site "Chess.com"]
[Date "2023.09.12"]
[Round "3"]
[White "artooon"]
[Black "Evgeny81"]
[Result "1-0"]
[WhiteElo "3056"]
[BlackElo "2753"]
[TimeControl "180+1"]
[EndTime "8:26:07 PDT"]
[Termination "artooon won by resignation"]

1. e4 {[%clk 0:03:00.9]} 1... e6 {[%clk 0:02:55.2]} 2. d4 {[%clk 0:03:00.8]}
2... d5 {[%clk 0:02:55.7]} 3. Nd2 {[%clk 0:03:01.4]} 3... Nd7 {[%clk 0:02:54.6]}
4. Ngf3 {[%clk 0:03:01.7]} 4... Ne7 {[%clk 0:02:54.1]} 5. Bd3 {[%clk 0:02:59.2]}
5... c5 {[%clk 0:02:54.2]} 6. c3 {[%clk 0:02:59.3]} 6... cxd4 {[%clk 0:02:53]}
7. cxd4 {[%clk 0:03:00.2]} 7... dxe4 {[%clk 0:02:51.6]} 8. Nxe4 {[%clk
0:03:00.3]} 8... Nd5 {[%clk 0:02:51.1]} 9. O-O {[%clk 0:02:59.5]} 9... Be7
{[%clk 0:02:50.8]} 10. Ne5 {[%clk 0:02:57.8]} 10... O-O {[%clk 0:02:32.2]} 11.
Qf3 {[%clk 0:02:57.9]} 11... N7f6 {[%clk 0:02:27.3]} 12. Bg5 {[%clk 0:02:28.8]}
12... Nxe4 {[%clk 0:02:17.9]} 13. Bxe7 {[%clk 0:02:28.8]} 13... Qxe7 {[%clk
0:02:12.7]} 14. Qxe4 {[%clk 0:02:22.7]} 14... g6 {[%clk 0:02:12.3]} 15. Rfe1
{[%clk 0:02:20.1]} 15... Qg5 {[%clk 0:01:55.2]} 16. h4 {[%clk 0:02:17.1]} 16...
Qf4 {[%clk 0:01:51.8]} 17. Rac1 {[%clk 0:02:17.6]} 17... b6 {[%clk 0:01:43.7]}
18. Qxf4 {[%clk 0:02:17.6]} 18... Nxf4 {[%clk 0:01:43.8]} 19. Be4 {[%clk
0:02:18.3]} 19... Rb8 {[%clk 0:01:38.8]} 20. Rc7 {[%clk 0:02:15.3]} 20... Ba6
{[%clk 0:01:22.4]} 21. Nd7 {[%clk 0:02:14]} 21... Ne2+ {[%clk 0:00:32.2]} 22.
Kh2 {[%clk 0:02:12.7]} 22... Nxd4 {[%clk 0:00:32.8]} 23. Rxa7 {[%clk 0:02:09.1]}
23... Bb5 {[%clk 0:00:32.2]} 24. Nxb8 {[%clk 0:02:05.6]} 24... Rxb8 {[%clk
0:00:33.1]} 25. a4 {[%clk 0:02:04.7]} 25... Be8 {[%clk 0:00:29.5]} 26. b4 {[%clk
0:02:02]} 26... e5 {[%clk 0:00:21.2]} 27. a5 {[%clk 0:01:59.8]} 27... bxa5
{[%clk 0:00:18.9]} 28. bxa5 {[%clk 0:02:00.7]} 28... Bb5 {[%clk 0:00:19.2]} 29.
Rb1 {[%clk 0:01:58.2]} 29... Rd8 {[%clk 0:00:16.7]} 30. Rb7 {[%clk 0:01:51.5]}
30... Ba6 {[%clk 0:00:15.4]} 31. Rb8 {[%clk 0:01:52]} 31... Rxb8 {[%clk
0:00:13.8]} 32. Rxb8+ {[%clk 0:01:52.9]} 32... Kg7 {[%clk 0:00:14.5]} 33. Rb6
{[%clk 0:01:53.8]} 1-0

[Event "Early-Titled-Tuesday-Blitz-September-12-2023"]
[Site "Chess.com"]
[Date "2023.09.12"]
[Round "3"]
[White "Chessmissile07"]
[Black "Zavgorodniy_Sergiy"]
[Result "1/2-1/2"]
[WhiteElo "2889"]
[BlackElo "2525"]
[TimeControl "180+1"]
[EndTime "8:26:07 PDT"]
[Termination "Game drawn by agreement"]

1. Nf3 {[%clk 0:03:00.9]} 1... d5 {[%clk 0:02:56.2]} 2. c4 {[%clk 0:03:00.6]}
2... e6 {[%clk 0:02:55.7]} 3. e3 {[%clk 0:02:59.9]} 3... dxc4 {[%clk 0:02:55.7]}
4. Bxc4 {[%clk 0:02:59.6]} 4... Nf6 {[%clk 0:02:56.1]} 5. O-O {[%clk 0:02:59.4]}
5... a6 {[%clk 0:02:56.2]} 6. a4 {[%clk 0:02:59.2]} 6... c5 {[%clk 0:02:56.1]}
7. b3 {[%clk 0:02:58]} 7... Nc6 {[%clk 0:02:56.2]} 8. Bb2 {[%clk 0:02:58.3]}
8... Be7 {[%clk 0:02:56.7]} 9. d4 {[%clk 0:02:49.9]} 9... cxd4 {[%clk
0:02:56.3]} 10. Nxd4 {[%clk 0:02:49.6]} 10... Nxd4 {[%clk 0:02:56.6]} 11. Qxd4
{[%clk 0:02:49.6]} 11... Qxd4 {[%clk 0:02:56.5]} 12. Bxd4 {[%clk 0:02:50.5]}
12... Bd7 {[%clk 0:02:56.9]} 13. Nc3 {[%clk 0:02:48.4]} 13... Bc6 {[%clk
0:02:54.7]} 14. Rfd1 {[%clk 0:02:45.4]} 14... O-O {[%clk 0:02:54.4]} 15. f3
{[%clk 0:02:45.3]} 15... Rfd8 {[%clk 0:02:52.5]} 16. Bb6 {[%clk 0:02:45]} 16...
Rxd1+ {[%clk 0:02:51.9]} 17. Rxd1 {[%clk 0:02:45.9]} 17... Bb4 {[%clk
0:02:51.8]} 18. Ne2 {[%clk 0:02:45.9]} 18... Nd7 {[%clk 0:02:50.2]} 19. Bd4
{[%clk 0:02:41.6]} 19... b5 {[%clk 0:02:49.2]} 20. axb5 {[%clk 0:02:39.5]} 20...
axb5 {[%clk 0:02:50.1]} 21. Bd3 {[%clk 0:02:40.2]} 21... Nc5 {[%clk 0:02:41.8]}
22. Bxc5 {[%clk 0:02:13.3]} 22... Bxc5 {[%clk 0:02:41.4]} 23. Kf2 {[%clk
0:02:14.2]} 23... Bd5 {[%clk 0:02:38]} 24. Bxb5 {[%clk 0:01:58.4]} 24... Bxb3
{[%clk 0:02:38.1]} 25. Rc1 {[%clk 0:01:58.3]} 25... Be7 {[%clk 0:02:32]} 26. Bc4
{[%clk 0:01:55.6]} 26... Ba4 {[%clk 0:02:25.3]} 27. Ra1 {[%clk 0:01:48.3]} 27...
Bc6 {[%clk 0:02:25.2]} 28. Rxa8+ {[%clk 0:01:48.7]} 28... Bxa8 {[%clk
0:02:26.1]} 29. e4 {[%clk 0:01:49.3]} 29... Bc5+ {[%clk 0:02:25.6]} 30. Ke1
{[%clk 0:01:48]} 30... Kf8 {[%clk 0:02:24.9]} 31. Nc1 {[%clk 0:01:45.4]} 31...
Bc6 {[%clk 0:02:23.2]} 32. Nd3 {[%clk 0:01:45.5]} 32... Bg1 {[%clk 0:02:22.2]}
33. h3 {[%clk 0:01:44.4]} 33... Ke7 {[%clk 0:02:22]} 34. Kf1 {[%clk 0:01:44.3]}
34... Bd4 {[%clk 0:02:21.3]} 35. Ke2 {[%clk 0:01:40.2]} 35... g5 {[%clk
0:02:21]} 36. g4 {[%clk 0:01:32.1]} 36... Kd6 {[%clk 0:02:18.9]} 37. Ba6 {[%clk
0:01:26.5]} 37... h6 {[%clk 0:02:14.5]} 38. Bc4 {[%clk 0:01:25.9]} 38... Bd7
{[%clk 0:02:12.5]} 39. Ne1 {[%clk 0:01:16.7]} 39... f5 {[%clk 0:02:11.5]} 40.
exf5 {[%clk 0:01:12.7]} 40... exf5 {[%clk 0:02:12.4]} 41. Bd3 {[%clk 0:01:12.5]}
41... fxg4 {[%clk 0:02:06.2]} 42. fxg4 {[%clk 0:01:12.1]} 42... Bc6 {[%clk
0:02:04.4]} 43. Nf3 {[%clk 0:01:08.8]} 43... Bxf3+ {[%clk 0:01:59.1]} 44. Kxf3
{[%clk 0:01:09.7]} 44... Ke5 {[%clk 0:01:59.4]} 45. Bg6 {[%clk 0:01:08.9]} 45...
Bb2 {[%clk 0:01:58.1]} 46. Bh5 {[%clk 0:01:08.5]} 46... Bc3 {[%clk 0:01:58.4]}
47. Be8 {[%clk 0:01:06.6]} 47... Kd4 {[%clk 0:01:58.5]} 48. Bh5 {[%clk
0:01:05.9]} 48... Bd2 {[%clk 0:01:58.5]} 49. Kg2 {[%clk 0:01:06.1]} 49... Ke3
{[%clk 0:01:58]} 50. Bg6 {[%clk 0:01:07]} 50... Be1 {[%clk 0:01:58]} 51. Bh5
{[%clk 0:01:07.9]} 51... Bh4 {[%clk 0:01:58.2]} 52. Be8 {[%clk 0:01:04.9]} 52...
Kf4 {[%clk 0:01:58.3]} 53. Bc6 {[%clk 0:01:02]} 53... Bg3 {[%clk 0:01:56.5]}
1/2-1/2

[Event "Early-Titled-Tuesday-Blitz-September-12-2023"]
[Site "Chess.com"]
[Date "2023.09.12"]
[Round "3"]
[White "Defend1r"]
[Black "maurovargas01"]
[Result "1-0"]
[WhiteElo "2527"]
[BlackElo "1868"]
[TimeControl "180+1"]
[EndTime "8:26:08 PDT"]
[Termination "Defend1r won on time"]

1. e4 {[%clk 0:03:00.9]} 1... d5 {[%clk 0:02:57.2]} 2. exd5 {[%clk 0:02:59.1]}
2... Qxd5 {[%clk 0:02:56.8]} 3. Nc3 {[%clk 0:02:59.5]} 3... Qa5 {[%clk
0:02:55.5]} 4. Bc4 {[%clk 0:02:58.8]} 4... c6 {[%clk 0:02:51.1]} 5. d3 {[%clk
0:02:56.2]} 5... Nf6 {[%clk 0:02:50]} 6. Ne2 {[%clk 0:02:55.1]} 6... Bg4 {[%clk
0:02:48.2]} 7. O-O {[%clk 0:02:55.2]} 7... e6 {[%clk 0:02:46.6]} 8. Be3 {[%clk
0:02:53.8]} 8... Bd6 {[%clk 0:02:44.4]} 9. f3 {[%clk 0:02:48.8]} 9... Qe5 {[%clk
0:02:15.5]} 10. Bf4 {[%clk 0:02:44.2]} 10... Qc5+ {[%clk 0:01:44.9]} 11. d4
{[%clk 0:02:44]} 11... Qxc4 {[%clk 0:01:38.5]} 12. Bxd6 {[%clk 0:02:44.1]} 12...
Bf5 {[%clk 0:01:28.7]} 13. b3 {[%clk 0:02:44]} 13... Qa6 {[%clk 0:01:18.8]} 14.
a4 {[%clk 0:02:40.3]} 14... Qb6 {[%clk 0:01:16.6]} 15. Kh1 {[%clk 0:02:38.7]}
15... Nbd7 {[%clk 0:01:11.1]} 16. a5 {[%clk 0:02:38]} 16... Qd8 {[%clk
0:01:06.5]} 17. Qd2 {[%clk 0:02:38.1]} 17... Nb8 {[%clk 0:00:52.9]} 18. Bg3
{[%clk 0:02:32.9]} 18... O-O {[%clk 0:00:51.1]} 19. Na4 {[%clk 0:02:26.7]} 19...
Na6 {[%clk 0:00:48.9]} 20. c4 {[%clk 0:02:23.5]} 20... c5 {[%clk 0:00:40.6]} 21.
Rfd1 {[%clk 0:02:21.1]} 21... cxd4 {[%clk 0:00:35.7]} 22. Nxd4 {[%clk
0:02:21.2]} 22... Bg6 {[%clk 0:00:31.8]} 23. Nb5 {[%clk 0:02:08.7]} 23... Qe7
{[%clk 0:00:31]} 24. Bd6 {[%clk 0:02:08.1]} 24... Qe8 {[%clk 0:00:16.6]} 25.
Bxf8 {[%clk 0:02:08.1]} 25... Qxf8 {[%clk 0:00:17.5]} 26. Nd6 {[%clk 0:02:04.7]}
26... Rd8 {[%clk 0:00:15.8]} 27. b4 {[%clk 0:02:03.3]} 27... Ne8 {[%clk
0:00:13.7]} 28. c5 {[%clk 0:02:03.1]} 28... b6 {[%clk 0:00:13.1]} 29. axb6
{[%clk 0:02:03.1]} 29... axb6 {[%clk 0:00:13.2]} 30. Nxb6 {[%clk 0:02:04]} 30...
Nxd6 {[%clk 0:00:10.8]} 31. cxd6 {[%clk 0:02:04.5]} 31... Nc7 {[%clk 0:00:07.5]}
32. dxc7 {[%clk 0:02:03.2]} 32... Rxd2 {[%clk 0:00:07.3]} 33. Rxd2 {[%clk
0:02:04.1]} 33... Qxb4 {[%clk 0:00:03.5]} 34. c8=Q+ {[%clk 0:02:04.4]} 34... Qf8
{[%clk 0:00:03]} 35. Rd8 {[%clk 0:02:05.1]} 1-0

[Event "Early-Titled-Tuesday-Blitz-September-12-2023"]
[Site "Chess.com"]
[Date "2023.09.12"]
[Round "3"]
[White "HamedWafa4"]
[Black "RamonManon0g"]
[Result "1-0"]
[WhiteElo "2560"]
[BlackElo "2307"]
[TimeControl "180+1"]
[EndTime "8:26:09 PDT"]
[Termination "HamedWafa4 won by resignation"]

1. e4 {[%clk 0:03:00.9]} 1... c5 {[%clk 0:02:46.5]} 2. Nc3 {[%clk 0:02:55.4]}
2... d6 {[%clk 0:02:46.3]} 3. Nge2 {[%clk 0:02:54.1]} 3... Nc6 {[%clk
0:02:47.1]} 4. d4 {[%clk 0:02:54]} 4... cxd4 {[%clk 0:02:47.5]} 5. Nxd4 {[%clk
0:02:54.4]} 5... a6 {[%clk 0:02:47.2]} 6. Bc4 {[%clk 0:02:42.9]} 6... Nf6 {[%clk
0:02:46.7]} 7. O-O {[%clk 0:02:40.2]} 7... e6 {[%clk 0:02:43.8]} 8. Bg5 {[%clk
0:02:25.8]} 8... Be7 {[%clk 0:02:43.5]} 9. Nxc6 {[%clk 0:02:23.3]} 9... bxc6
{[%clk 0:02:43.5]} 10. Qf3 {[%clk 0:02:24]} 10... O-O {[%clk 0:02:41.2]} 11.
Rad1 {[%clk 0:02:21.7]} 11... Rb8 {[%clk 0:02:39.2]} 12. Bb3 {[%clk 0:02:20.6]}
12... d5 {[%clk 0:02:38.9]} 13. Rfe1 {[%clk 0:02:18.2]} 13... Nd7 {[%clk
0:02:37.2]} 14. Bxe7 {[%clk 0:02:17.6]} 14... Qxe7 {[%clk 0:02:38]} 15. exd5
{[%clk 0:02:18.2]} 15... cxd5 {[%clk 0:02:38.3]} 16. Nxd5 {[%clk 0:02:18.3]}
16... Qg5 {[%clk 0:02:29.4]} 17. Nc3 {[%clk 0:01:57.8]} 17... Nc5 {[%clk
0:02:04.2]} 18. Qg3 {[%clk 0:01:57.7]} 18... Qxg3 {[%clk 0:02:02.8]} 19. hxg3
{[%clk 0:01:58.6]} 19... Nxb3 {[%clk 0:02:03.4]} 20. axb3 {[%clk 0:01:57.4]}
20... Re8 {[%clk 0:01:43.7]} 21. Ne4 {[%clk 0:01:50.1]} 21... Kf8 {[%clk
0:01:34.4]} 22. Nd6 {[%clk 0:01:49.4]} 22... Rd8 {[%clk 0:01:34.9]} 23. Nxc8
{[%clk 0:01:46.6]} 23... Rdxc8 {[%clk 0:01:35.8]} 24. Re2 {[%clk 0:01:45.7]}
24... Ke7 {[%clk 0:01:35]} 25. Red2 {[%clk 0:01:45.2]} 25... Rb7 {[%clk
0:01:33]} 26. Kf1 {[%clk 0:01:43.1]} 26... a5 {[%clk 0:01:32.6]} 27. g4 {[%clk
0:01:43.1]} 27... a4 {[%clk 0:01:31]} 28. bxa4 {[%clk 0:01:42.4]} 28... Rxb2
{[%clk 0:01:31.3]} 29. Rd7+ {[%clk 0:01:43.1]} 29... Kf6 {[%clk 0:01:31.8]} 30.
R1d3 {[%clk 0:01:41.5]} 30... Rcxc2 {[%clk 0:01:26.2]} 31. Rf3+ {[%clk
0:01:41.9]} 31... Kg6 {[%clk 0:01:26.7]} 32. Kg1 {[%clk 0:01:41.5]} 32... f6
{[%clk 0:01:23.5]} 33. g5 {[%clk 0:01:41.2]} 33... Rb1+ {[%clk 0:00:55.7]} 34.
Kh2 {[%clk 0:01:40.5]} 34... Rb4 {[%clk 0:00:56.6]} 35. gxf6 {[%clk 0:01:36.9]}
35... gxf6 {[%clk 0:00:56.8]} 36. Rg3+ {[%clk 0:01:37]} 36... Kf5 {[%clk
0:00:53.6]} 37. Rxh7 {[%clk 0:01:34.9]} 37... Rxf2 {[%clk 0:00:52.7]} 38. Rh5+
{[%clk 0:01:34.1]} 38... Kf4 {[%clk 0:00:50]} 39. Rh4+ {[%clk 0:01:34]} 39...
Kf5 {[%clk 0:00:50.7]} 40. Rxb4 {[%clk 0:01:34.7]} 1-0

[Event "Early-Titled-Tuesday-Blitz-September-12-2023"]
[Site "Chess.com"]
[Date "2023.09.12"]
[Round "3"]
[White "Francisco_Ferrari"]
[Black "Jackalhead_Anubis"]
[Result "1-0"]
[WhiteElo "2166"]
[BlackElo "2391"]
[TimeControl "180+1"]
[EndTime "8:26:13 PDT"]
[Termination "Francisco_Ferrari won by resignation"]

1. e4 {[%clk 0:03:00.9]} 1... e5 {[%clk 0:02:57.2]} 2. Nf3 {[%clk 0:02:59.1]}
2... Nc6 {[%clk 0:02:57.6]} 3. Bb5 {[%clk 0:02:58.5]} 3... Nf6 {[%clk
0:02:56.7]} 4. d3 {[%clk 0:02:56.1]} 4... Bc5 {[%clk 0:02:55.5]} 5. c3 {[%clk
0:02:52.9]} 5... d5 {[%clk 0:02:47.3]} 6. Nxe5 {[%clk 0:02:37.9]} 6... O-O
{[%clk 0:02:40.3]} 7. Nxc6 {[%clk 0:02:24.3]} 7... bxc6 {[%clk 0:02:34.4]} 8.
Bxc6 {[%clk 0:02:16.9]} 8... Rb8 {[%clk 0:02:31.6]} 9. O-O {[%clk 0:02:08.8]}
9... Bg4 {[%clk 0:02:29.4]} 10. Qc2 {[%clk 0:01:59.2]} 10... dxe4 {[%clk
0:02:24.3]} 11. dxe4 {[%clk 0:01:54.8]} 11... Qd6 {[%clk 0:02:22.3]} 12. Ba4
{[%clk 0:01:49.9]} 12... Rfd8 {[%clk 0:02:15.2]} 13. Bg5 {[%clk 0:01:48.2]}
13... h6 {[%clk 0:02:12.1]} 14. Bh4 {[%clk 0:01:44.8]} 14... g5 {[%clk
0:02:04.1]} 15. Bg3 {[%clk 0:01:44.5]} 15... Qb6 {[%clk 0:02:00.1]} 16. b4
{[%clk 0:01:42.9]} 16... Be7 {[%clk 0:01:55.4]} 17. Na3 {[%clk 0:01:40.5]} 17...
h5 {[%clk 0:01:51.6]} 18. Nc4 {[%clk 0:01:37.9]} 18... Qa6 {[%clk 0:01:49]} 19.
Bb3 {[%clk 0:01:30.9]} 19... Rbc8 {[%clk 0:01:44]} 20. h4 {[%clk 0:01:21.4]}
20... gxh4 {[%clk 0:01:30]} 21. Bxh4 {[%clk 0:01:22.3]} 21... c5 {[%clk
0:01:28.6]} 22. e5 {[%clk 0:01:15.5]} 22... Nd5 {[%clk 0:01:26.8]} 23. Bxe7
{[%clk 0:01:15.5]} 23... Nxe7 {[%clk 0:01:27.7]} 24. Nd6 {[%clk 0:01:15.8]}
24... Rxd6 {[%clk 0:01:21.8]} 25. exd6 {[%clk 0:01:15.7]} 25... Qxd6 {[%clk
0:01:22.7]} 26. bxc5 {[%clk 0:01:12.3]} 26... Qxc5 {[%clk 0:01:23.6]} 27. Rfe1
{[%clk 0:01:08.2]} 27... Kf8 {[%clk 0:01:17.1]} 28. Qh7 {[%clk 0:01:05]} 28...
Qf5 {[%clk 0:01:10.4]} 29. Qh6+ {[%clk 0:00:56.1]} 29... Ke8 {[%clk 0:01:08.2]}
30. Qd6 {[%clk 0:00:52.7]} 1-0

[Event "Early-Titled-Tuesday-Blitz-September-12-2023"]
[Site "Chess.com"]
[Date "2023.09.12"]
[Round "3"]
[White "Alexei_Gubajdullin"]
[Black "Fleetw00dMac"]
[Result "0-1"]
[WhiteElo "2611"]
[BlackElo "2466"]
[TimeControl "180+1"]
[EndTime "8:26:20 PDT"]
[Termination "Fleetw00dMac won by resignation"]

1. d4 {[%clk 0:02:59.4]} 1... Nf6 {[%clk 0:02:59.4]} 2. Nf3 {[%clk 0:02:59.5]}
2... g6 {[%clk 0:02:59.6]} 3. Bf4 {[%clk 0:02:59.7]} 3... Bg7 {[%clk 0:02:59]}
4. e3 {[%clk 0:02:59.9]} 4... d6 {[%clk 0:02:59]} 5. Be2 {[%clk 0:03:00.3]} 5...
Nh5 {[%clk 0:02:57.2]} 6. Bg5 {[%clk 0:02:58.6]} 6... h6 {[%clk 0:02:56.9]} 7.
Bh4 {[%clk 0:02:58.8]} 7... c5 {[%clk 0:02:56]} 8. c3 {[%clk 0:02:58]} 8... g5
{[%clk 0:02:44.8]} 9. Bg3 {[%clk 0:02:57.9]} 9... Nxg3 {[%clk 0:02:32.1]} 10.
hxg3 {[%clk 0:02:57.7]} 10... Nd7 {[%clk 0:02:16.8]} 11. Nbd2 {[%clk 0:02:52]}
11... b6 {[%clk 0:02:12.6]} 12. a4 {[%clk 0:02:51.1]} 12... a6 {[%clk
0:02:12.1]} 13. g4 {[%clk 0:02:47.9]} 13... Bb7 {[%clk 0:02:11.1]} 14. Nf1
{[%clk 0:02:47.7]} 14... Nf6 {[%clk 0:02:10.3]} 15. Ng3 {[%clk 0:02:36]} 15...
e6 {[%clk 0:02:03.5]} 16. Nh5 {[%clk 0:02:27.4]} 16... Nxh5 {[%clk 0:02:01]} 17.
Rxh5 {[%clk 0:02:27.9]} 17... Qc7 {[%clk 0:01:45.7]} 18. Kf1 {[%clk 0:02:27.6]}
18... O-O-O {[%clk 0:01:35.1]} 19. b4 {[%clk 0:02:25.9]} 19... cxb4 {[%clk
0:01:30.4]} 20. cxb4 {[%clk 0:02:25.6]} 20... Kb8 {[%clk 0:01:30.6]} 21. b5
{[%clk 0:02:23]} 21... a5 {[%clk 0:01:30.2]} 22. Rc1 {[%clk 0:02:22.5]} 22...
Qe7 {[%clk 0:01:26.4]} 23. Nd2 {[%clk 0:02:21.8]} 23... Rc8 {[%clk 0:01:25.9]}
24. Nc4 {[%clk 0:02:17.4]} 24... Ka7 {[%clk 0:01:25.9]} 25. Rb1 {[%clk
0:01:57.9]} 25... Bd5 {[%clk 0:01:22]} 26. Nxa5 {[%clk 0:01:49.8]} 26... bxa5
{[%clk 0:01:20.3]} 27. Qd2 {[%clk 0:01:49.9]} 27... Kb6 {[%clk 0:01:19]} 28. f3
{[%clk 0:01:41.6]} 28... Bc4 {[%clk 0:01:12.8]} 29. Rh1 {[%clk 0:01:31]} 29...
d5 {[%clk 0:01:12.5]} 30. Kf2 {[%clk 0:01:29.3]} 30... Rc7 {[%clk 0:01:11.2]}
31. Rhc1 {[%clk 0:01:28.3]} 31... Rhc8 {[%clk 0:01:10.2]} 32. Bxc4 {[%clk
0:01:16.9]} 32... Rxc4 {[%clk 0:01:09.5]} 33. Rxc4 {[%clk 0:01:16.7]} 33... Rxc4
{[%clk 0:01:09.3]} 34. Qd3 {[%clk 0:01:13.5]} 34... Qc7 {[%clk 0:01:05.3]} 35.
Qh7 {[%clk 0:01:08.9]} 35... Bf8 {[%clk 0:01:04.6]} 36. Qg8 {[%clk 0:01:06.9]}
36... Rc2+ {[%clk 0:01:02.1]} 37. Kg1 {[%clk 0:01:06.9]} 37... Qg3 {[%clk
0:01:01.4]} 0-1

[Event "Early-Titled-Tuesday-Blitz-September-12-2023"]
[Site "Chess.com"]
[Date "2023.09.12"]
[Round "3"]
[White "NotFischer"]
[Black "Semetey"]
[Result "0-1"]
[WhiteElo "2279"]
[BlackElo "2514"]
[TimeControl "180+1"]
[EndTime "8:26:23 PDT"]
[Termination "Semetey won by resignation"]

1. e4 {[%clk 0:03:00.9]} 1... c6 {[%clk 0:02:17.7]} 2. d4 {[%clk 0:03:00.3]}
2... d5 {[%clk 0:02:17]} 3. exd5 {[%clk 0:03:01.2]} 3... cxd5 {[%clk 0:02:16.5]}
4. Bd3 {[%clk 0:03:01.8]} 4... Nf6 {[%clk 0:02:15.1]} 5. c3 {[%clk 0:03:02.4]}
5... Bg4 {[%clk 0:02:14.8]} 6. Qb3 {[%clk 0:03:02.3]} 6... Qc8 {[%clk
0:02:13.4]} 7. Bf4 {[%clk 0:03:01.7]} 7... Nc6 {[%clk 0:02:11.6]} 8. Nd2 {[%clk
0:03:01.6]} 8... e6 {[%clk 0:02:10.9]} 9. Ngf3 {[%clk 0:03:01.2]} 9... Be7
{[%clk 0:02:10.3]} 10. O-O {[%clk 0:03:00.8]} 10... O-O {[%clk 0:02:10.2]} 11.
Rae1 {[%clk 0:03:00.6]} 11... a6 {[%clk 0:02:03.5]} 12. Qc2 {[%clk 0:03:00.2]}
12... Bh5 {[%clk 0:01:58.6]} 13. Ne5 {[%clk 0:02:59.7]} 13... Bg6 {[%clk
0:01:55]} 14. Nxg6 {[%clk 0:02:59.1]} 14... hxg6 {[%clk 0:01:54.9]} 15. Nf3
{[%clk 0:02:58.9]} 15... b5 {[%clk 0:01:54]} 16. a3 {[%clk 0:02:56.8]} 16... Qb7
{[%clk 0:01:52.2]} 17. Ne5 {[%clk 0:02:56.3]} 17... Rfc8 {[%clk 0:01:51.6]} 18.
Qe2 {[%clk 0:02:55]} 18... Nxe5 {[%clk 0:01:45]} 19. Bxe5 {[%clk 0:02:46.5]}
19... Qc6 {[%clk 0:01:36.7]} 20. Bxf6 {[%clk 0:02:36.8]} 20... gxf6 {[%clk
0:01:33.9]} 21. Qg4 {[%clk 0:02:37.5]} 21... Kg7 {[%clk 0:01:33.6]} 22. f4
{[%clk 0:02:37.3]} 22... Rh8 {[%clk 0:01:33]} 23. f5 {[%clk 0:02:34.1]} 23...
Bd6 {[%clk 0:01:22.8]} 24. fxg6 {[%clk 0:02:13.2]} 24... Bxh2+ {[%clk
0:01:21.1]} 25. Kf2 {[%clk 0:02:13.4]} 25... f5 {[%clk 0:01:15.7]} 26. Qg5
{[%clk 0:01:56.5]} 26... f6 {[%clk 0:01:01.2]} 27. Qe3 {[%clk 0:01:56.3]} 27...
Rae8 {[%clk 0:00:59.7]} 28. g3 {[%clk 0:01:55.9]} 28... Rh3 {[%clk 0:00:59.4]}
29. Qe2 {[%clk 0:01:18.5]} 29... Qd6 {[%clk 0:00:51.8]} 30. Rg1 {[%clk
0:01:05.4]} 30... Bxg3+ {[%clk 0:00:50.8]} 31. Kf1 {[%clk 0:00:59.6]} 31... Qf4+
{[%clk 0:00:50.5]} 0-1

[Event "Early-Titled-Tuesday-Blitz-September-12-2023"]
[Site "Chess.com"]
[Date "2023.09.12"]
[Round "3"]
[White "Artemiki"]
[Black "Jojo_898"]
[Result "1-0"]
[WhiteElo "2148"]
[BlackElo "2365"]
[TimeControl "180+1"]
[EndTime "8:26:29 PDT"]
[Termination "Artemiki won by resignation"]

1. e4 {[%clk 0:02:52.5]} 1... d6 {[%clk 0:02:59]} 2. d4 {[%clk 0:02:51.6]} 2...
Nf6 {[%clk 0:02:58.6]} 3. Nc3 {[%clk 0:02:52.2]} 3... g6 {[%clk 0:02:57.7]} 4.
g3 {[%clk 0:02:52.3]} 4... c6 {[%clk 0:02:57.8]} 5. a4 {[%clk 0:02:50.7]} 5...
Bg7 {[%clk 0:02:57.5]} 6. Bg2 {[%clk 0:02:51.2]} 6... O-O {[%clk 0:02:57.6]} 7.
Nge2 {[%clk 0:02:51.8]} 7... Nbd7 {[%clk 0:02:56.8]} 8. h3 {[%clk 0:02:51.7]}
8... e5 {[%clk 0:02:54.8]} 9. O-O {[%clk 0:02:47.2]} 9... Qe7 {[%clk 0:02:54]}
10. Be3 {[%clk 0:02:44.5]} 10... Nb6 {[%clk 0:02:51.5]} 11. Qd3 {[%clk
0:02:32.1]} 11... Be6 {[%clk 0:02:47.8]} 12. b3 {[%clk 0:02:32.2]} 12... Rad8
{[%clk 0:02:35.3]} 13. g4 {[%clk 0:02:20.4]} 13... d5 {[%clk 0:02:28.7]} 14.
dxe5 {[%clk 0:02:12.4]} 14... dxe4 {[%clk 0:02:28.2]} 15. exf6 {[%clk
0:02:12.2]} 15... Bxf6 {[%clk 0:01:51.4]} 16. Qxe4 {[%clk 0:02:10.1]} 16... Nd5
{[%clk 0:01:51.5]} 17. Nxd5 {[%clk 0:02:06.4]} 17... cxd5 {[%clk 0:01:50.8]} 18.
Qd3 {[%clk 0:02:03.8]} 18... Bxa1 {[%clk 0:01:50.5]} 19. Rxa1 {[%clk 0:02:03.4]}
19... f5 {[%clk 0:01:50]} 20. g5 {[%clk 0:01:51.6]} 20... b6 {[%clk 0:01:29]}
21. f4 {[%clk 0:01:48.3]} 21... Kf7 {[%clk 0:01:07.9]} 22. Bd4 {[%clk
0:01:45.8]} 22... Qc7 {[%clk 0:01:01.9]} 23. Kh1 {[%clk 0:01:38.1]} 23... Rc8
{[%clk 0:00:59.6]} 24. Rc1 {[%clk 0:01:34.6]} 24... Rfe8 {[%clk 0:00:47]} 25.
Be5 {[%clk 0:01:33.1]} 25... Qc5 {[%clk 0:00:46.5]} 26. Nd4 {[%clk 0:01:32.4]}
26... Red8 {[%clk 0:00:20.9]} 27. Re1 {[%clk 0:01:25.4]} 27... Re8 {[%clk
0:00:20.7]} 28. Nxe6 {[%clk 0:01:20.3]} 28... Rxe6 {[%clk 0:00:20.2]} 29. Bxd5
{[%clk 0:01:16.6]} 29... Qxc2 {[%clk 0:00:20.4]} 30. Bxe6+ {[%clk 0:01:14.8]}
30... Kxe6 {[%clk 0:00:21.3]} 31. Qd6+ {[%clk 0:01:14.2]} 1-0